lending/lending_fUSD_20251018
["ID","MTS","AMOUNT","RATE_DAILY","PERIOD"]
[391777409,1760799036020,-500.0,0.00031571,2]
[391777410,1760799036029,-615.79,0.00031571,2]
[391777411,1760799036039,-500.0,0.00031571,2]
[391777412,1760799036048,-838.37,0.00031571,2]
[391777413,1760799036058,-500.0,0.00031571,2]
[391777414,1760799036067,-500.0,0.00031571,2]
[391777415,1760799036075,-472.66535301,0.00031571,2]
[391777416,1760799036085,-500.0,0.00031571,2]
[391777417,1760799036094,-500.0,0.00031571,2]
[391777418,1760799036103,-500.0,0.00031571,2]
[391777419,1760799036112,-500.0,0.00031571,2]
[391777420,1760799036124,-720.93,0.00031571,2]
[391777421,1760799036134,-500.0,0.00031571,2]
[391777422,1760799036143,-500.0,0.00031571,2]
[391777423,1760799036152,-500.0,0.00031571,2]
[391777424,1760799036162,-500.0,0.00031571,2]
[391777425,1760799036171,-500.0,0.00031571,2]
[391777426,1760799036180,-500.0,0.00031571,2]
[391777427,1760799036190,-500.0,0.00031571,2]
[391777428,1760799036199,-5963.49,0.00031571,2]
[391777429,1760799036208,-500.0,0.00031571,2]
[391777430,1760799036218,-500.0,0.00031571,2]
[391777431,1760799036227,-500.0,0.00031571,2]
[391777432,1760799036236,-400.69017929,0.00031571,2]
[391777433,1760799036245,-500.0,0.00031571,2]
[391777434,1760799036255,-561.59,0.00031571,2]
[391777435,1760799036264,-500.0,0.00031571,2]
[391777436,1760799036273,-600.77150098,0.00031571,2]
[391777437,1760799036282,-500.0,0.00031571,2]
[391777438,1760799036291,-494.00952616,0.00031571,2]
[391777439,1760799036300,-500.0,0.00031571,2]
[391777440,1760799036309,-500.0,0.00031571,2]
[391777441,1760799036319,-546.62,0.00031589,2]
[391777442,1760799036328,-194.57,0.00031589,2]
[391777443,1760799036337,-176.03,0.00031589,2]
[391777444,1760799036346,-150.0,0.00031589,2]
[391777445,1760799036355,-472.32,0.00031616,2]
[391777446,1760799036364,-162.10833707,0.00031637,15]
[391777447,1760799036375,-150.0,0.00031725,2]
[391777448,1760799036385,-500.0,0.00031725,2]
[391777449,1760799036394,-203.17460082,0.00031725,2]
[391777450,1760799036403,-154.04048273,0.00031725,2]
[391777451,1760799036412,-250.0,0.00031725,2]
[391777452,1760799036425,-250.0,0.00031725,2]
[391777453,1760799036434,-150.0,0.00031725,2]
[391777454,1760799036443,-150.0,0.00031725,2]
[391777455,1760799036453,-150.0,0.00031725,2]
[391777456,1760799036463,-150.0,0.00031725,2]
[391777457,1760799036472,-150.74572387,0.00031725,2]
[391777458,1760799036481,-150.17523028,0.00031725,2]
[391777459,1760799036491,-150.0,0.00031725,2]
[391777460,1760799036500,-150.0,0.00031725,2]
[391777461,1760799036510,-150.41,0.00031753,2]
[391777462,1760799036519,-300.0,0.00031753,2]
[391777463,1760799036529,-324.19,0.00031753,2]
[391777464,1760799036538,-400.0,0.00031758,5]
[391777465,1760799036548,-168.0,0.00031765,2]
[391777466,1760799036557,-150.0,0.0003178,2]
[391777467,1760799036567,-500.0,0.0003178,2]
[391777468,1760799036576,-150.0,0.0003178,2]
[391777469,1760799036585,-150.0,0.0003178,2]
[391777470,1760799036594,-150.0,0.0003178,2]
[391777471,1760799036603,-150.0,0.0003178,2]
[391777472,1760799036613,-150.0,0.0003178,2]
[391777473,1760799036625,-573.24,0.0003178,2]
[391777474,1760799036635,-500.0,0.0003178,2]
[391777475,1760799036644,-500.0,0.0003178,2]
[391777476,1760799036654,-500.0,0.0003178,2]
[391777477,1760799036664,-500.0,0.0003178,2]
[391777478,1760799036673,-500.0,0.0003178,2]
[391777479,1760799036683,-500.0,0.0003178,2]
[391777480,1760799036692,-500.0,0.0003178,2]
[391777481,1760799036702,-1149.79,0.0003178,2]
[391777482,1760799036712,-1340.85,0.0003178,2]
[391777483,1760799036721,-500.0,0.0003178,2]
[391777484,1760799036730,-500.0,0.0003178,2]
[391777485,1760799036741,-500.0,0.0003178,2]
[391777486,1760799036750,-502.85848729,0.0003178,2]
[391777487,1760799036759,-500.0,0.0003178,2]
[391777488,1760799036769,-500.0,0.0003178,2]
[391777489,1760799036779,-500.0,0.0003178,2]
[391777490,1760799036788,-500.0,0.0003178,2]
[391777491,1760799036797,-500.0,0.0003178,2]
[391777492,1760799036807,-162.10833707,0.00031802,15]
[391777493,1760799036817,-150.0,0.00031835,2]
[391777494,1760799036826,-500.0,0.00031835,2]
[391777495,1760799036836,-150.0,0.00031835,2]
[391777496,1760799036845,-200.0,0.00031835,2]
[391777497,1760799036854,-200.0,0.00031835,2]
[391777498,1760799036863,-200.0,0.00031835,2]
[391777499,1760799036875,-150.0,0.00031835,2]
[391777500,1760799036885,-500.0,0.00031845,2]
[391777501,1760799036895,-500.0,0.00031845,2]
[391777502,1760799036904,-500.0,0.00031845,2]
[391777503,1760799036913,-500.0,0.00031845,2]
[391777504,1760799036923,-2602.96,0.00031845,2]
[391777505,1760799036932,-500.0,0.00031845,2]
[391777506,1760799036941,-500.0,0.00031845,2]
[391777507,1760799036951,-157.77,0.00031845,2]
[391777508,1760799036960,-500.0,0.00031845,2]
[391777509,1760799036969,-500.0,0.00031845,2]
[391777510,1760799036982,-500.0,0.00031845,2]
[391777511,1760799036991,-500.0,0.00031845,2]
[391777512,1760799037001,-500.0,0.00031845,2]
[391777513,1760799037011,-500.0,0.00031845,2]
[391777514,1760799037020,-500.0,0.00031845,2]
[391777515,1760799037030,-500.0,0.00031845,2]
[391777516,1760799037039,-500.0,0.00031845,2]
[391777517,1760799037049,-500.0,0.00031845,2]
[391777518,1760799037058,-615.79,0.00031845,2]
[391777519,1760799037067,-500.0,0.00031845,2]
[391777520,1760799037076,-838.37,0.00031845,2]
[391777521,1760799037086,-222.15257849,0.00031845,2]
[391777522,1760799037096,-500.0,0.00031845,2]
[391777523,1760799037105,-500.0,0.00031845,2]
[391777524,1760799037114,-500.0,0.00031845,2]
[391777525,1760799037124,-616.52480822,0.00031845,2]
[391777526,1760799037134,-500.0,0.00031845,2]
[391777527,1760799037143,-720.93,0.00031845,2]
[391777528,1760799037152,-500.0,0.00031845,2]
[391777529,1760799037161,-500.0,0.00031845,2]
[391777530,1760799037170,-500.0,0.00031845,2]
[391777531,1760799037179,-500.0,0.00031845,2]
[391777532,1760799037188,-500.0,0.00031845,2]
[391777533,1760799037197,-500.0,0.00031845,2]
[391777534,1760799037207,-226.80956686,0.00031845,2]
[391777535,1760799037216,-5963.49,0.00031845,2]
[391777536,1760799037226,-500.0,0.00031845,2]
[391777537,1760799037236,-500.0,0.00031845,2]
[391777538,1760799037246,-500.0,0.00031845,2]
[391777539,1760799037255,-500.0,0.00031845,2]
[391777540,1760799037264,-561.59,0.00031845,2]
[391777541,1760799037274,-500.0,0.00031845,2]
[391777542,1760799037283,-500.0,0.00031845,2]
[391777543,1760799037293,-500.0,0.00031845,2]
[391777544,1760799037302,-500.0,0.00031845,2]
[391777545,1760799037311,-153.84660669,0.00031889,2]
[391777546,1760799037320,-500.0,0.00031889,2]
[391777547,1760799037329,-150.0,0.00031889,2]
[391777548,1760799037339,-150.0,0.00031889,2]
[391777549,1760799037348,-500.0,0.00031899,2]
[391777550,1760799037357,-500.0,0.00031899,2]
[391777551,1760799037366,-500.0,0.00031899,2]
[391777552,1760799037378,-500.0,0.00031899,2]
[391777553,1760799037387,-500.0,0.00031944,2]
[391777554,1760799037397,-150.0,0.00031944,2]
[391777555,1760799037407,-196.18945097,0.00031944,2]
[391777556,1760799037420,-200.0,0.00031968,2]
[391777557,1760799037435,-162.10833707,0.00031968,15]
[391777558,1760799037445,-188.12379968,0.00031994,30]
[391777559,1760799037454,-500.0,0.00031999,2]
[391777560,1760799037463,-171.9602,0.00031999,2]
[391777561,1760799037474,-3000.0,0.00032,2]
[391777562,1760799037484,-2033.13662199,0.00032,2]
[391777563,1760799037493,-1000.0,0.00032,2]
[391777564,1760799037504,-1000.0,0.00032,2]
[391777566,1760799037514,-1000.0,0.00032,2]
[391777567,1760799037523,-1000.0,0.00032,2]
[391777568,1760799037533,-1000.0,0.00032,2]
[391777569,1760799037543,-1000.0,0.00032,2]
[391777570,1760799037552,-1000.0,0.00032,2]
[391777571,1760799037562,-1000.0,0.00032,2]
[391777572,1760799037571,-151.0,0.00032,30]
[391777573,1760799037580,-151.0,0.00032,30]
[391777574,1760799037590,-151.0,0.00032,30]
[391777575,1760799037599,-151.0,0.00032,30]
[391777576,1760799037609,-500.0,0.00032052,2]
[391777577,1760799037621,-500.0,0.00032052,2]
[391777578,1760799037631,-500.0,0.00032052,2]
[391777579,1760799037640,-545.39252,0.00032052,2]
[391777580,1760799037650,-500.0,0.00032054,2]
[391777581,1760799037659,-573.24,0.00032054,2]
[391777582,1760799037669,-500.0,0.00032054,2]
[391777583,1760799037678,-506.22716655,0.00032054,2]
[391777584,1760799037687,-500.0,0.00032054,2]
[391777585,1760799037696,-270.99536908,0.00032054,2]
[391777586,1760799037706,-500.0,0.00032054,2]
[391777587,1760799037716,-500.0,0.00032054,2]
[391777588,1760799037726,-1149.79,0.00032054,2]
[391777589,1760799037736,-1340.85,0.00032054,2]
[391777590,1760799037880,-500.0,0.00032054,2]
[391777591,1760799037890,-500.0,0.00032054,2]
[391777592,1760799037900,-500.0,0.00032054,2]
[391777593,1760799037910,-500.0,0.00032054,2]
[391777595,1760799037919,-500.0,0.00032054,2]
[391777597,1760799037928,-500.0,0.00032054,2]
[391777598,1760799037937,-500.0,0.00032054,2]
[391777599,1760799037947,-151.0,0.00032054,30]
[391777600,1760799037957,-500.0,0.00032054,2]
[391777601,1760799037966,-500.0,0.00032109,2]
[391777602,1760799037975,-500.0,0.00032119,2]
[391777603,1760799037984,-500.0,0.00032119,2]
[391777604,1760799037994,-500.0,0.00032119,2]
[391777605,1760799038003,-500.0,0.00032119,2]
[391777606,1760799038013,-2602.96,0.00032119,2]
[391777607,1760799038023,-500.0,0.00032119,2]
[391777608,1760799038032,-500.0,0.00032119,2]
[391777609,1760799038043,-500.0,0.00032119,2]
[391777610,1760799038052,-500.0,0.00032119,2]
[391777611,1760799038062,-500.0,0.00032119,2]
[391777612,1760799038071,-500.0,0.00032119,2]
[391777613,1760799038080,-500.0,0.00032119,2]
[391777614,1760799038089,-500.0,0.00032119,2]
[391777615,1760799038099,-500.0,0.00032119,2]
[391777616,1760799038109,-500.0,0.00032119,2]
[391777617,1760799038120,-500.0,0.00032119,2]
[391777618,1760799038130,-500.0,0.00032119,2]
[391777619,1760799038139,-615.79,0.00032119,2]
[391777620,1760799038149,-500.0,0.00032119,2]
[391777621,1760799038158,-838.37,0.00032119,2]
[391777622,1760799038168,-261.62510741,0.00032119,2]
[391777623,1760799038177,-500.0,0.00032119,2]
[391777624,1760799038186,-500.0,0.00032119,2]
[391777625,1760799038196,-500.0,0.00032119,2]
[391777626,1760799038205,-720.93,0.00032119,2]
[391777627,1760799038215,-500.0,0.00032119,2]
[391777628,1760799038224,-500.0,0.00032119,2]
[391777629,1760799038234,-500.0,0.00032119,2]
[391777630,1760799038244,-500.0,0.00032119,2]
[391777631,1760799038254,-500.0,0.00032119,2]
[391777632,1760799038264,-500.0,0.00032119,2]
[391777633,1760799038274,-620.51984439,0.00032119,2]
[391777634,1760799038378,-5342.97015561,0.00032119,2]
[391777635,1760799038388,-500.0,0.00032119,2]
[391777636,1760799038398,-500.0,0.00032119,2]
[391777637,1760799038408,-500.0,0.00032119,2]
[391777638,1760799038417,-500.0,0.00032119,2]
[391777639,1760799038431,-561.59,0.00032119,2]
[391777640,1760799038440,-500.0,0.00032119,2]
[391777641,1760799038450,-500.0,0.00032119,2]
[391777642,1760799038465,-458.96716134,0.00032119,2]
[391777643,1760799038476,-500.0,0.00032119,2]
[391777644,1760799038485,-168.0,0.0003212,2]
[391777645,1760799038495,-162.10833707,0.00032134,15]
[391777646,1760799038505,-200.0,0.00032139,2]
[391777647,1760799038514,-300.0,0.00032159,2]
[391777648,1760799038525,-500.0,0.00032163,2]
[391777649,1760799038535,-500.0,0.00032199,2]
[391777650,1760799038545,-500.0,0.00032199,2]
[391777651,1760799038554,-500.0,0.00032199,2]
[391777652,1760799038564,-500.0,0.00032199,2]
[391777653,1760799038573,-500.0,0.00032199,2]
[391777654,1760799038582,-785.0,0.000322,15]
[391777655,1760799038591,-1000.0,0.000322,12]
[391777656,1760799038601,-1000.0,0.000322,12]
[391777657,1760799038611,-1000.0,0.000322,12]
[391777658,1760799038620,-1000.0,0.000322,12]
[391777659,1760799038630,-1000.0,0.000322,12]
[391777660,1760799038639,-268.07631682,0.00032218,2]
[391777661,1760799038649,-1000.0,0.00032226,2]
[391777662,1760799038660,-538.0,0.00032261,2]
[391777663,1760799038669,-162.10833707,0.00032299,15]
[391777664,1760799038682,-1000.168,0.000323,2]
[391777665,1760799038692,-178.52198616,0.000323,2]
[391777666,1760799038702,-353.52112482,0.000323,5]
[391777667,1760799038713,-680.0,0.00032305,5]
[391777668,1760799038728,-500.0,0.00032326,2]
[391777669,1760799038737,-500.0,0.00032326,2]
[391777670,1760799038747,-500.0,0.00032326,2]
[391777671,1760799038757,-573.24,0.00032328,2]
[391777672,1760799038767,-500.0,0.00032328,2]
[391777673,1760799038776,-500.0,0.00032328,2]
[391777674,1760799038786,-1149.79,0.00032328,2]
[391777675,1760799038796,-1340.85,0.00032328,2]
[391777676,1760799038806,-500.0,0.00032328,2]
[391777677,1760799038815,-500.0,0.00032328,2]
[391777678,1760799038825,-500.0,0.00032328,2]
[391777679,1760799038834,-500.0,0.00032328,2]
[391777680,1760799038845,-324.93474054,0.00032328,2]
[391777681,1760799038856,-500.0,0.00032328,2]
[391777682,1760799038866,-500.0,0.00032328,2]
[391777683,1760799038877,-561.0,0.00032328,2]
[391777684,1760799038890,-500.0,0.00032356,7]
[391777685,1760799038900,-1200.0,0.00032356,7]
[391777686,1760799038910,-500.0,0.00032356,7]
[391777687,1760799038921,-538.0,0.00032365,2]
[391777688,1760799038932,-500.30913434,0.00032373,5]
[391777689,1760799038942,-165.55947544,0.0003239,2]
[391777690,1760799038953,-500.0,0.00032393,2]
[391777691,1760799038963,-500.0,0.00032393,2]
[391777692,1760799038972,-500.0,0.00032393,2]
[391777693,1760799038982,-500.0,0.00032393,2]
[391777694,1760799038991,-2602.96,0.00032393,2]
[391777695,1760799039003,-500.0,0.00032393,2]
[391777696,1760799039014,-500.0,0.00032393,2]
[391777697,1760799039025,-500.0,0.00032393,2]
[391777698,1760799039035,-500.0,0.00032393,2]
[391777699,1760799039045,-500.0,0.00032393,2]
[391777700,1760799039055,-500.0,0.00032393,2]
[391777701,1760799039065,-500.0,0.00032393,2]
[391777702,1760799039079,-500.0,0.00032393,2]
[391777703,1760799039088,-500.0,0.00032393,2]
[391777704,1760799039098,-500.0,0.00032393,2]
[391777705,1760799039108,-500.0,0.00032393,2]
[391777706,1760799039117,-500.0,0.00032393,2]
[391777707,1760799039127,-615.79,0.00032393,2]
[391777708,1760799039137,-500.0,0.00032393,2]
[391777709,1760799039148,-838.37,0.00032393,2]
[391777710,1760799039159,-500.0,0.00032393,2]
[391777711,1760799039170,-500.0,0.00032393,2]
[391777712,1760799039179,-500.0,0.00032393,2]
[391777713,1760799039191,-720.93,0.00032393,2]
[391777714,1760799039201,-500.0,0.00032393,2]
[391777715,1760799039211,-500.0,0.00032393,2]
[391777716,1760799039220,-230.7680917,0.00032393,2]
[391777717,1760799039230,-500.0,0.00032393,2]
[391777718,1760799039240,-500.0,0.00032393,2]
[391777719,1760799039250,-500.0,0.00032393,2]
[391777720,1760799039260,-5963.49,0.00032393,2]
[391777721,1760799039270,-500.0,0.00032393,2]
[391777722,1760799039281,-500.0,0.00032393,2]
[391777723,1760799039291,-198.91942877,0.00032393,2]
[391777724,1760799039300,-500.0,0.00032393,2]
[391777725,1760799039311,-561.59,0.00032393,2]
[391777726,1760799039320,-500.0,0.00032393,2]
[391777727,1760799039330,-500.0,0.00032393,2]
[391777728,1760799039339,-500.0,0.00032393,2]
[391777729,1760799039351,-500.0,0.00032398,2]
[391777730,1760799039360,-1000.0,0.00032399,30]
[391777731,1760799039370,-201.72812731,0.00032399,2]
[391777732,1760799039379,-500.0,0.00032399,2]
[391777733,1760799039388,-348.33430866,0.00032399,2]
[391777734,1760799039398,-500.0,0.00032399,2]
[391777735,1760799039408,-500.0,0.00032399,2]
[391777736,1760799039419,-500.0,0.00032399,2]
[391777737,1760799039436,-500.0,0.00032399,2]
[391777738,1760799039446,-500.0,0.00032399,2]
[391777739,1760799039460,-604.05596645,0.00032399,2]
[391777740,1760799039470,-500.0,0.00032399,2]
[391777741,1760799039479,-500.0,0.00032399,2]
[391777742,1760799039489,-500.0,0.00032399,2]
[391777743,1760799039500,-500.0,0.00032399,2]
[391777744,1760799039509,-500.0,0.00032399,2]
[391777745,1760799039519,-500.0,0.00032399,2]
[391777746,1760799039528,-419.76,0.00032399,2]
[391777747,1760799039538,-150.0,0.00032399,2]
[391777748,1760799039547,-500.0,0.00032399,2]
[391777749,1760799039556,-500.0,0.00032399,2]
[391777750,1760799039569,-500.0,0.00032399,2]
[391777751,1760799039580,-245.29,0.00032399,2]
[391777752,1760799039592,-150.0,0.00032399,20]
[391777753,1760799039606,-999.0,0.00032399,120]
[391777754,1760799039618,-500.0,0.00032399,2]
[391777755,1760799039629,-500.0,0.00032399,2]
[391777756,1760799039639,-500.0,0.00032399,2]
[391777757,1760799039655,-500.0,0.00032399,2]
[391777758,1760799039665,-306.6,0.00032399,2]
[391777759,1760799039676,-500.0,0.00032399,2]
[391777760,1760799039686,-500.0,0.00032399,2]
[391777761,1760799039697,-500.0,0.00032399,2]
[391777762,1760799039708,-481.47853721,0.00032399,2]
[391777763,1760799039720,-500.0,0.00032399,2]
[391777764,1760799039731,-500.0,0.00032399,2]
[391777765,1760799039742,-199.87,0.00032399,2]
[391777766,1760799039752,-90280.67492994,0.000324,4]
[391777767,1760799039767,-1228.46384075,0.000324,4]
[391777768,1760799039888,-6437.0,0.00030263,2]
[391777769,1760799039899,-474.66254457,0.00030999,2]
[391777770,1760799039911,-500.0,0.00030999,2]
[391777771,1760799039922,-500.0,0.00030999,2]
[391777772,1760799039933,-500.0,0.00030999,2]
[391777773,1760799039944,-500.0,0.00030999,2]
[391777774,1760799039956,-500.0,0.00030999,2]
[391777775,1760799039968,-500.0,0.00030999,2]
[391777776,1760799039979,-500.0,0.00030999,2]
[391777777,1760799039990,-500.0,0.00030999,2]
[391777778,1760799040001,-500.0,0.00030999,2]
[391777779,1760799040012,-500.0,0.00030999,2]
[391777780,1760799040027,-500.0,0.00030999,2]
[391777781,1760799040038,-215.28537379,0.00030999,2]
[391777782,1760799040050,-500.0,0.00030999,2]
[391777783,1760799040061,-41966.08808164,0.000324,4]
[391777784,1760799040075,-552.80225,0.000324,4]
[391777785,1760799040089,-4795.14817667,0.000324,4]
[391777786,1760799040133,-691.2271323,0.000324,4]
[391777787,1760799040146,-1319.84233781,0.000324,4]
[391777788,1760799040160,-16776.83324507,0.000324,4]
[391777789,1760799040176,-774.06895301,0.000324,4]
[391777790,1760799040192,-594.9566712,0.000324,4]
[391777791,1760799040206,-1253.16948324,0.000324,4]
[391777792,1760799040220,-4254.55545679,0.000324,4]
[391777800,1760799042789,-500.0,0.00031023,2]
[391777801,1760799042800,-500.0,0.00031297,2]
[391777802,1760799042811,-5000.0,0.00031406,2]
[391777803,1760799042821,-500.0,0.00031571,2]
[391777804,1760799042832,-500.0,0.00031845,2]
[391777805,1760799042842,-500.0,0.00032119,2]
[391777806,1760799042856,-500.0,0.00032393,2]
[391777807,1760799042867,-391730.0,0.000324,4]
[391777808,1760799042903,-360.0,0.000324,4]
[391777817,1760799045799,-107270.0,0.000324,4]
[391777818,1760799046099,-1863.6381059,0.000324,4]
[391777819,1760799046114,-471.69962302,0.000324,4]
[391777820,1760799046161,-41856.22339748,0.000324,4]
[391777821,1760799046172,-165376.42783117,0.000324,4]
[391777822,1760799046185,-60439.40243908,0.000324,4]
[391777823,1760799046198,-421.9602,0.000324,4]
[391777825,1760799067836,5000.0,0.00032723,36]
[391777863,1760799902488,-170.42914449,0.00013699,2]
[391777864,1760799907363,-39.61085551,0.00013699,2]
[391777865,1760799907386,-182.35446581,0.00015068,2]
[391777866,1760799910393,-163.2090389,0.00015068,2]
[391777867,1760799912450,-179.22736028,0.00015068,2]
[391777868,1760799914498,-222.65064152,0.00015068,2]
[391777869,1760799916387,-163.1454749,0.00015068,2]
[391777870,1760799919462,-170.40639918,0.00015068,2]
[391777871,1760799922663,-181.61206179,0.00015068,2]
[391777872,1760799925800,-215.38971724,0.00015068,2]
[391777873,1760799929875,-161.63263787,0.00015068,2]
[391777877,1760799946955,-189.60429847,0.00015068,2]
[391777879,1760799949547,-252.91331211,0.00015068,2]
[391777880,1760799951543,-417.85459193,0.00015068,2]
[391777881,1760799951568,-16.05868552,0.00015068,2]
[391777882,1760799954676,-167.60418897,0.00015068,2]
[391777883,1760799956730,-218.51371194,0.00015068,2]
[391777884,1760799978264,-182.40920469,0.00015068,2]
[391777885,1760799978289,-83.81709731,0.00016575,2]
[391777886,1760800077291,1583.81,0.00028712,120]
[391777887,1760800081940,-111.18290269,0.00016575,2]
[391777888,1760800081964,-100.73254735,0.00018233,2]
[391777889,1760800085051,-500.0,0.00018233,2]
[391777890,1760800088374,-320.77865192,0.00018233,2]
[391777891,1760800090516,-322.58306415,0.00018233,2]
[391777892,1760800093205,-204.03127952,0.00018233,2]
[391777894,1760800096481,-164.72,0.00018233,2]
[391777896,1760800098574,-170.03969581,0.00018233,2]
[391777897,1760800100649,-442.06633041,0.00018233,2]
[391777898,1760800103929,-161.20902467,0.00018233,2]
[391777899,1760800106397,-113.83940617,0.00018233,2]
[391777900,1760800106420,-63.85426342,0.00019985,2]
[391777901,1760800109681,-293.74753492,0.00019985,2]
[391777902,1760800111730,-342.74956733,0.00019985,2]
[391777903,1760800114463,-208.91527485,0.00019985,2]
[391777904,1760800115877,-223.88060482,0.00019985,2]
[391777905,1760800118013,-193.2692,0.00019985,2]
[391777906,1760800119799,-347.4172722,0.00019985,2]
[391777907,1760800122039,-191.07508675,0.00019985,2]
[391777908,1760800124756,-251.73414428,0.00019985,2]
[391777909,1760800126772,-235.62764105,0.00019985,2]
[391777910,1760800128914,-487.232409,0.00019985,2]
[391777911,1760800130533,-347.0,0.00019985,2]
[391777913,1760800172452,-194.46217041,0.00020086,2]
[391777914,1760800176735,-105.53782959,0.00020086,2]
[391777915,1760800176756,-213.28876186,0.00020087,2]
[391777916,1760800178613,-289.73762311,0.00020087,2]
[391777917,1760800180436,-314.11051528,0.00020087,2]
[391777918,1760800181972,-255.91598012,0.00019985,2]
[391777919,1760800184022,-158.82,0.00019985,2]
[391777920,1760800185503,-480.01145564,0.0001997,2]
[391777921,1760800191531,150.0,0.00032732,60]
[391777922,1760800191773,300.0,0.00032732,61]
[391777923,1760800192019,450.0,0.00032732,62]
[391777924,1760800192245,600.0,0.00032732,63]
[391777925,1760800193246,750.0,0.00032732,64]
[391777926,1760800193492,900.0,0.00032732,65]
[391777927,1760800193739,1050.0,0.00032732,66]
[391777928,1760800193999,1200.0,0.00032732,67]
[391777929,1760800194245,600.0,0.00032732,68]
[391777930,1760800201995,-181.53607269,0.0001997,2]
[391777931,1760800203605,-128.13192488,0.0001997,2]
[391777932,1760800203629,-110.01649509,0.00019985,2]
[391777933,1760800206424,-272.55,0.00019985,2]
[391777934,1760800208119,-178.9044041,0.00019985,2]
[391777935,1760800209680,-712.31550734,0.00019985,2]
[391777936,1760800211120,-244.11976489,0.00018359,2]
[391777937,1760800213130,-258.85131911,0.00018359,2]
[391777938,1760800213154,-68.1245119,0.00019985,2]
[391777940,1760800216198,-199.18036275,0.00019985,2]
[391777948,1760800231929,-571.62162882,0.00019985,2]
[391777949,1760800231942,-677.54895488,0.00019985,2]
[391777950,1760800231952,-300.0,0.00020086,2]
[391777951,1760800231965,-300.0,0.00020086,2]
[391777952,1760800231976,-1200.0,0.00020086,2]
[391777953,1760800231986,-5371.37776018,0.00020087,2]
[391777954,1760800231999,-2107.37240693,0.00020087,2]
[391777955,1760800232034,-369.27631731,0.00020087,2]
[391777956,1760800232046,-1396.31373041,0.00020087,2]
[391777957,1760800232058,-96.32443781,0.00020087,2]
[391777958,1760800232068,-210.04,0.00020187,2]
[391777959,1760800232077,-205.88790947,0.00020765,2]
[391777960,1760800232265,-297.08317453,0.00020765,2]
[391777961,1760800232277,-71.55455751,0.0002187,2]
[391777962,1760800232293,-228.44544249,0.0002187,2]
[391777963,1760800232312,-67.86069736,0.00021974,2]
[391777964,1760800232326,-903.66226838,0.00021974,2]
[391777965,1760800232342,-259.69942639,0.00021974,2]
[391777966,1760800232359,-448.77760787,0.00021974,2]
[391777967,1760800232368,-11.73587808,0.00023171,2]
[391777968,1760800232380,-491.23520592,0.00023171,2]
[391777969,1760800232390,-170.40639918,0.000232,2]
[391777970,1760800232400,-215.38971724,0.000232,2]
[391777971,1760800232409,-170.40639918,0.000234,2]
[391777972,1760800232419,-215.38971724,0.000234,2]
[391777973,1760800232430,-170.40639918,0.000237,2]
[391777975,1760800232440,-54.29444527,0.000237,2]
[391777977,1760800232451,-161.09527197,0.000237,2]
[391777979,1760800232461,-172.03,0.00023822,2]
[391777981,1760800232471,-170.40639918,0.000239,2]
[391777982,1760800232481,-215.38971724,0.000239,2]
[391777983,1760800232490,-1871.0,0.0002404,2]